bitfinex/quotes_ETHUSD_20250801
["timestamp","ask_amount","ask_price","bid_price","bid_amount"]
[1754006402882,30.0,3703.6,3702.1,0.46960001]
[1754006403078,0.8957,3703.5,3702.2,4.26]
[1754006403311,0.8957,3703.5,3702.3,0.4696]
[1754006403474,0.4325,3703.5,3702.4,0.55]
[1754006403696,0.4325,3703.5,3702.6,0.55]
[1754006403883,0.4632,3703.4,3702.6,0.55]
[1754006404082,0.4325,3703.3,3702.7,0.4696]
[1754006404313,0.4632,3703.7,3702.7,0.4696]
[1754006404503,0.4325,3704.1,3702.8,0.55]
[1754006404821,0.02,3704.9,3702.2,4.26]
[1754006405021,30.0,3704.7,3702.3,0.91582548]
[1754006405238,30.0,3704.5,3702.4,1.0196]
[1754006405516,0.8957,3704.4,3702.6,0.55]
[1754006405714,0.4325,3704.3,3702.8,0.55]
[1754006406015,0.4632,3704.2,3703.0,0.55]
[1754006406215,0.4325,3704.1,3703.1,4.26]
[1754006406415,0.4632,3704.0,3703.1,4.26]
[1754006406588,0.4325,3703.9,3703.1,4.26]
[1754006406780,0.4325,3703.9,3703.2,0.4696]
[1754006407116,0.4325,3704.4,3703.3,0.55]
[1754006407284,0.4325,3704.2,3703.3,3.25028287]
[1754006407620,0.4325,3704.2,3703.4,3.16976816]
[1754006407921,0.4325,3704.5,3703.5,2.70010034]
[1754006408119,0.4325,3704.5,3703.6,0.84157003]
[1754006408412,0.4325,3704.5,3703.7,1.0196]
[1754006408614,0.4325,3704.5,3703.8,0.4696]
[1754006408831,0.4325,3704.5,3703.8,4.7296]
[1754006409034,0.4325,3704.5,3703.7,3.2499997]
[1754006409035,0.4325,3704.5,3703.9,4.7296]
[1754006409236,0.4325,3704.5,3704.0,0.52796]
[1754006409648,0.4325,3704.5,3704.1,0.4696]
[1754006409939,0.02,3704.9,3704.1,0.4696]
[1754006410119,0.4325,3704.8,3704.1,0.4696]
[1754006410326,0.8957,3704.8,3704.1,0.4696]
[1754006411443,0.4632,3704.8,3704.1,0.4696]
[1754006411648,0.4325,3704.7,3704.1,0.4696]
[1754006412342,0.4325,3704.7,3704.1,0.93438519]
[1754006412750,0.4632,3704.6,3703.9,4.26]
[1754006413050,0.4325,3704.5,3703.9,4.26]
[1754006413248,0.4325,3704.5,3703.9,4.7296]
[1754006413612,0.4325,3704.5,3704.0,4.26]
[1754006413820,0.4632,3704.4,3704.0,4.26]
[1754006414119,0.8957,3704.3,3704.0,4.26]
[1754006414351,0.02,3704.9,3704.0,4.26]
[1754006414352,0.8957,3704.2,3704.0,4.26]
[1754006414552,0.02,3704.9,3704.0,4.26]
[1754006414764,0.4325,3704.1,3704.0,4.26]
[1754006415752,0.4525,3704.9,3704.0,4.7296]
[1754006415929,0.4525,3704.9,3704.1,0.4696]
[1754006416125,0.9157,3704.9,3704.1,0.4696]
[1754006416332,0.4832,3704.9,3704.1,0.4696]
[1754006416533,30.0,3704.7,3703.4,0.4843]
[1754006416833,6.21485132,3704.6,3703.2,0.4843]
[1754006417033,0.1352,3704.0,3703.4,0.1352]
[1754006417241,0.4635,3703.9,3703.4,0.1352]
[1754006417442,0.1352,3704.0,3703.5,0.4843]
[1754006417763,0.1352,3704.0,3703.4,0.1352]
[1754006417764,0.4635,3703.8,3703.4,0.1352]
[1754006417953,0.9296,3703.7,3703.4,0.1352]
[1754006418148,0.4635,3703.6,3703.4,0.1352]
[1754006418361,0.1352,3704.0,3703.4,0.1352]
[1754006418362,0.6013,3704.0,3703.4,0.1352]
[1754006418556,0.4635,3703.9,3703.4,0.6195]
[1754006419071,0.1352,3704.0,3703.4,0.6195]
[1754006419366,0.4635,3703.8,3703.4,0.6195]
[1754006419890,0.4635,3703.7,3703.4,0.1352]
[1754006420034,0.9296,3703.7,3702.7,0.4843]
[1754006420368,0.1352,3703.4,3702.9,0.1352]
[1754006420542,0.4635,3703.3,3702.9,0.6195]
[1754006420751,0.4635,3703.2,3702.9,0.1352]
[1754006420950,0.4635,3703.1,3702.9,0.1352]
[1754006421357,0.4635,3703.0,3702.9,0.1352]
[1754006421555,0.9296,3703.0,3702.9,0.1352]
[1754006421762,0.4635,3703.0,3702.9,0.1352]
[1754006421936,0.4635,3703.0,3702.7,0.1352]
[1754006422275,0.9296,3702.9,3702.7,0.1352]
[1754006422474,0.1352,3703.4,3702.8,4.26]
[1754006422662,0.4661,3703.2,3702.8,4.26]
[1754006422838,0.1352,3703.4,3702.8,4.26]
[1754006423039,0.4661,3703.1,3702.8,4.26]
[1754006423373,0.4635,3703.0,3702.8,4.26]
[1754006424707,0.4635,3703.9,3702.9,0.4843]
[1754006424872,0.1352,3703.6,3703.0,4.26]
[1754006425073,0.4635,3703.5,3703.0,4.3952]
[1754006425272,0.4661,3703.4,3703.0,4.3952]
[1754006425592,1.0648,3703.3,3703.0,4.26]
[1754006425902,0.9296,3703.2,3703.0,4.26]
[1754006426098,0.4661,3703.2,3703.0,4.26]
[1754006426298,0.4635,3703.1,3703.0,4.26]
[1754006426602,0.9296,3703.1,3703.0,4.26]
[1754006428102,1.0648,3703.1,3702.8,4.26]
[1754006428300,0.1352,3702.9,3702.8,4.26]
[1754006428792,1.0648,3702.9,3702.8,4.26]
[1754006429215,0.5987,3702.9,3702.8,4.26]
[1754006429882,1.0648,3702.9,3702.8,4.26]
[1754006430680,0.1352,3702.9,3702.8,4.26]
[1754006430883,0.5987,3702.9,3702.8,4.26]
[1754006432083,1.0648,3702.9,3702.8,4.26]
[1754006434217,31.44470749,3702.9,3702.4,4.26]
[1754006434420,30.0,3703.0,3702.4,4.26]
[1754006434616,0.1352,3702.5,3702.4,4.26]
[1754006435059,0.4635,3703.2,3702.4,4.7443]
[1754006435324,0.1352,3702.9,3702.4,4.26]
[1754006435524,0.1352,3702.9,3702.5,0.4843]
[1754006435882,0.4635,3702.8,3702.5,0.4843]
[1754006436087,0.4635,3702.8,3702.4,4.26]
[1754006436394,0.4635,3702.8,3702.5,0.4843]
[1754006436621,0.4635,3702.7,3702.5,0.4843]
[1754006437007,4.219,3703.5,3702.4,4.26]
[1754006437217,0.1352,3702.5,3702.4,4.26]
[1754006438874,0.5987,3702.5,3702.4,4.26]
[1754006439686,0.1352,3702.5,3702.4,4.26]
[1754006440088,1.0648,3702.5,3702.4,4.26]
[1754006440340,1.0648,3702.5,3702.2,4.26]
[1754006440522,0.4635,3702.4,3702.3,4.26]
[1754006440892,0.5987,3702.4,3702.3,4.26]
[1754006441087,1.0648,3702.4,3702.3,4.26]
[1754006441286,946.0648,3702.4,3702.3,4.26]
[1754006442032,945.5987,3702.4,3702.3,4.26]
[1754006442326,946.0648,3702.4,3702.3,4.26]
[1754006442548,946.77888741,3702.4,3702.1,1e-08]
[1754006442724,0.9296,3702.3,3702.1,1e-08]
[1754006442926,0.1352,3702.2,3702.1,1e-08]
[1754006443234,0.5987,3702.2,3702.1,1e-08]
[1754006443398,3.76589664,3702.2,3702.1,1e-08]
[1754006443998,6.00413042,3702.2,3702.1,1e-08]
[1754006444199,3.30303378,3702.2,3702.1,1e-08]
[1754006444433,0.1352,3702.2,3702.1,1e-08]
[1754006444739,945.0,3702.4,3702.1,4.74430001]
[1754006444913,945.0,3702.4,3702.3,0.6852]
[1754006445110,945.0,3702.4,3702.3,4.9452]
[1754006445313,945.0,3702.4,3702.3,4.8795]
[1754006445841,945.4635,3702.4,3702.3,0.1352]
[1754006446024,945.0,3702.4,3702.3,0.6195]
[1754006446229,945.0,3702.4,3702.3,0.4843]
[1754006448104,945.0,3702.4,3702.3,0.6195]
[1754006448906,945.0,3702.4,3702.1,0.47110001]
[1754006449109,945.0,3702.4,3702.2,0.4711]
[1754006449406,945.0,3702.4,3702.3,0.4711]
[1754006451711,945.4699,3702.4,3702.1,0.13520001]
[1754006451926,0.4699,3702.3,3702.1,0.13520001]
[1754006452237,0.4699,3702.3,3702.2,4.26]
[1754006453108,3.53748366,3702.3,3702.2,4.26]
[1754006453310,3.67268366,3702.3,3702.2,4.26]
[1754006453509,5.3058,3702.3,3702.2,4.26]
[1754006454003,3.0,3702.2,3702.1,1e-08]
[1754006454231,3.9516,3702.2,3702.1,1e-08]
[1754006454604,4.3542,3702.3,3702.1,1e-08]
[1754006454605,3.1352,3702.3,3702.1,1e-08]
[1754006454811,4.219,3702.2,3702.1,1e-08]
[1754006456210,4.6889,3702.2,3702.1,1e-08]
[1754006457781,7.79024736,3702.2,3702.1,1e-08]
[1754006457969,10.75648366,3702.2,3702.1,1e-08]
[1754006458277,40.75648366,3702.2,3702.1,1e-08]
[1754006458503,43.4575803,3702.2,3702.1,1e-08]
[1754006458775,40.75648366,3702.2,3702.1,1e-08]
[1754006459182,39.2385803,3702.2,3702.1,1e-08]
[1754006459364,43.4575803,3702.2,3702.1,1e-08]
[1754006460175,40.75648366,3702.2,3702.1,1e-08]
[1754006460378,8.3058,3702.2,3702.1,1e-08]
[1754006460695,41.00689664,3702.2,3702.1,1e-08]
[1754006460876,8.3058,3702.2,3702.1,1e-08]
[1754006461048,8.1706,3702.2,3702.1,1e-08]
[1754006461450,7.219,3702.2,3702.1,1e-08]
[1754006461851,945.0,3702.4,3702.1,1e-08]
[1754006462046,3.0,3702.3,3702.1,0.47110001]
[1754006462363,945.0,3702.4,3702.2,0.4711]
[1754006462683,945.0,3702.4,3702.1,1e-08]
[1754006462846,0.4699,3702.3,3702.1,1e-08]
[1754006463150,951.80488366,3702.4,3702.1,1e-08]
[1754006463151,949.219,3702.4,3702.1,1e-08]
[1754006463357,0.4699,3702.2,3702.1,1e-08]
[1754006463584,4.6889,3702.2,3702.1,1e-08]
[1754006463948,4.6889,3702.2,3702.1,4.26000001]
[1754006464279,10.75648366,3702.2,3702.1,4.26000001]
[1754006465775,940.73999999,3702.0,3701.5,0.4711]
[1754006465976,4.219,3701.9,3701.5,0.4711]
[1754006466195,944.95799999,3702.0,3701.6,0.4711]
[1754006466493,940.73999999,3702.0,3701.6,0.4711]
[1754006466859,940.73999999,3702.0,3701.2,4.26]
[1754006467091,940.73999999,3702.0,3701.3,4.7311]
[1754006467092,943.32588365,3702.0,3701.3,4.7311]
[1754006467287,943.32588365,3702.0,3701.4,0.4711]
[1754006467497,940.73999999,3702.0,3701.4,0.4711]
[1754006470071,940.73999999,3702.0,3701.5,0.55]
[1754006470294,940.73999999,3702.0,3701.6,0.4711]
[1754006471198,940.73999999,3702.0,3701.9,0.1352]
[1754006471563,940.73999999,3702.0,3701.9,0.6063]
[1754006471759,940.73999999,3702.0,3701.9,0.1352]
[1754006471990,940.73999999,3702.0,3701.6,0.4711]
[1754006472194,941.20989999,3702.0,3701.7,0.6063]
[1754006472400,941.20989999,3702.0,3701.5,4.218]
[1754006472401,940.73999999,3702.0,3701.9,0.1352]
[1754006472594,940.73999999,3702.0,3701.9,0.6063]
[1754006472812,940.73999999,3702.0,3701.9,4.8663]
[1754006472976,941.20989999,3702.0,3701.9,4.26]
[1754006473175,948.49548365,3702.0,3701.9,4.26]
[1754006473499,948.63068365,3702.0,3701.9,4.26]
[1754006473899,951.63068365,3702.0,3701.9,4.26]
[1754006474698,954.33192622,3702.0,3701.9,4.26]
[1754006475402,3.0,3701.9,3701.2,0.1352]
[1754006475600,3.0,3701.9,3701.1,0.02]
[1754006475601,0.1352,3701.3,3701.1,0.02]
[1754006475787,4.218,3701.2,3701.1,0.02]
[1754006476110,5.1696,3701.2,3701.1,0.02]
[1754006477857,3.0,3701.9,3701.1,0.5092]
[1754006478152,4.3532,3701.8,3701.1,0.5092]
[1754006478350,4.3532,3701.8,3701.3,0.1352]
[1754006478553,0.1352,3701.8,3701.4,0.4892]
[1754006478753,4.218,3701.7,3701.4,0.4892]
[1754006479158,0.5704,3701.8,3701.4,0.4892]
[1754006479541,4.6532,3701.7,3701.3,0.1352]
[1754006479742,0.8979,3701.6,3701.1,0.02]
[1754006479940,0.1352,3701.4,3701.1,0.02]
[1754006480554,0.5704,3701.4,3701.1,0.02]
[1754006480869,0.1352,3701.4,3701.1,0.02]
[1754006481163,0.1352,3701.2,3701.1,0.02]
[1754006481666,4.218,3701.5,3701.1,0.5092]
[1754006481864,4.218,3701.5,3701.1,0.6444]
[1754006482170,4.218,3701.5,3701.2,0.4892]
[1754006482562,4.218,3701.5,3701.1,0.1552]
[1754006482563,0.4352,3701.4,3701.1,0.02]
[1754006482769,0.8979,3701.4,3701.1,0.02]
[1754006482956,0.4352,3701.3,3701.1,0.02]
[1754006484171,4.3532,3701.5,3701.1,0.02]
[1754006484172,0.4352,3701.2,3701.1,0.02]
[1754006485135,4.37674,3701.2,3701.1,0.02]
[1754006485334,4.51194,3701.2,3701.1,0.02]
[1754006485734,4.04924,3701.2,3701.1,0.02]
[1754006485933,3.0,3701.2,3701.1,0.02]
[1754006486161,3.0,3701.2,3701.1,0.5092]
[1754006486687,3.8979,3701.2,3701.1,0.02]
[1754006486980,4.0331,3701.2,3701.1,0.02]
[1754006488249,935.81559999,3700.0,3699.3,2.70317104]
[1754006488487,935.81559999,3700.0,3699.4,7.218]
[1754006488687,935.81559999,3700.0,3699.9,0.1352]
[1754006490479,935.81559999,3700.0,3699.9,0.6244]
[1754006490985,935.81559999,3700.0,3699.9,1.1744]
[1754006491381,935.81559999,3700.0,3699.9,0.1352]
[1754006491587,935.81559999,3700.0,3699.9,0.6244]
[1754006491794,935.81559999,3700.0,3699.9,3.87717575]
[1754006492178,930.95808183,3700.0,3699.9,4.53518045]
[1754006492378,925.54442426,3700.0,3699.9,4.53518045]
[1754006493890,925.54442426,3700.0,3699.9,6.0924047]
[1754006494088,925.54442426,3700.0,3699.9,8.79518045]
[1754006494690,925.54442426,3700.0,3699.9,11.79518045]
[1754006494691,911.47329702,3700.0,3699.9,11.79518045]
[1754006494892,911.14846019,3700.0,3699.9,11.79518045]
[1754006497095,911.14846019,3700.0,3699.9,16.01318045]
[1754006497612,911.14846019,3700.0,3699.9,12.7604047]
[1754006497781,911.14846019,3700.0,3699.9,8.6132]
[1754006498391,911.14846019,3700.0,3699.9,9.1632]
[1754006498705,911.14846019,3700.0,3699.9,4.3952]
[1754006498909,912.04636019,3700.0,3699.9,8.6122]
[1754006499070,911.14846019,3700.0,3699.9,8.6122]
[1754006499907,912.04636019,3700.0,3699.9,8.6122]
[1754006500411,912.04636019,3700.0,3699.9,4.3952]
[1754006501012,911.14846019,3700.0,3699.9,4.3952]
[1754006501211,912.04636019,3700.0,3699.9,4.3952]
[1754006501415,912.04636019,3700.0,3699.9,0.1352]
[1754006501709,912.04636019,3700.0,3699.1,0.02]
[1754006501710,917.43151058,3700.0,3699.1,0.02]
[1754006501895,3.8979,3699.9,3699.1,0.02]
[1754006502096,0.1352,3699.3,3699.1,0.02]
[1754006502300,7.217,3699.2,3699.1,0.02]
[1754006502607,5.1149,3699.2,3698.6,0.1352]
[1754006502812,0.5704,3699.1,3698.6,0.1352]
[1754006503018,4.6522,3699.0,3698.6,0.1352]
[1754006503208,0.8979,3698.9,3698.6,0.1352]
[1754006503579,0.4352,3699.4,3698.2,4.217]
[1754006503827,4.6797,3699.7,3698.9,0.55]
[1754006503996,4.6797,3699.7,3699.0,4.218]
[1754006503997,0.4627,3699.7,3699.0,4.218]
[1754006504197,911.28366019,3700.0,3699.6,0.1352]
[1754006504198,911.14846019,3700.0,3699.6,0.1352]
[1754006504391,911.14846019,3700.0,3699.6,4.3532]
[1754006504609,911.14846019,3700.0,3699.9,0.1352]
[1754006504984,911.58366019,3700.0,3699.9,0.1352]
[1754006505181,912.04636019,3700.0,3699.9,0.1352]
[1754006505517,917.18877005,3700.0,3699.5,0.1352]
[1754006505714,0.1352,3699.8,3699.3,0.1352]
[1754006506022,0.8979,3699.7,3699.3,0.1352]
[1754006506186,0.8979,3699.6,3699.3,0.1352]
[1754006506586,4.3532,3699.8,3699.3,0.1352]
[1754006506921,4.3532,3699.8,3698.4,0.4845]
[1754006506922,3.9556,3699.7,3698.5,8.478]
[1754006507107,3.9556,3699.7,3697.9,0.4845]
[1754006507108,0.1352,3699.1,3698.6,0.1352]
[1754006507309,3.1352,3698.7,3698.1,0.1552]
[1754006507507,5.1746,3698.6,3698.1,0.1552]
[1754006507880,0.9556,3698.5,3698.1,0.1552]
[1754006508088,0.9556,3698.4,3698.1,0.1552]
[1754006508280,5.1746,3698.4,3698.1,0.02]
[1754006508526,0.9556,3698.3,3698.1,0.02]
[1754006509125,0.9556,3698.2,3698.1,0.02]
[1754006510991,3.65961817,3698.2,3698.1,0.02]
[1754006511225,8.01381817,3698.2,3698.1,0.02]
[1754006511427,11.01381817,3698.2,3698.1,0.02]
[1754006511604,12.37206783,3698.2,3698.1,0.02]
[1754006514933,42.37206783,3698.2,3698.1,0.02]
[1754006520754,42.61918766,3698.2,3698.1,1e-08]
[1754006520962,42.61918766,3698.2,3697.5,1.0]
[1754006520963,3.0,3698.1,3697.5,1.0]
[1754006521112,2.70435926,3697.8,3697.5,1.0]
[1754006521319,8.1766,3697.7,3697.5,1.0]
[1754006521606,0.9556,3697.6,3697.5,1.0]
[1754006521739,36.66005694,3697.6,3697.5,1.0]
[1754006522729,3.9556,3697.6,3697.5,1.0]
[1754006522930,6.66005694,3697.6,3697.5,1.0]
[1754006523112,38.04782917,3697.6,3697.5,1.0]
[1754006523324,8.04782917,3697.6,3697.5,1.0]
[1754006523512,5.34337223,3697.6,3697.5,1.0]
[1754006523968,8.1766,3697.6,3697.5,1.0]
[1754006524261,7.221,3697.6,3697.5,1.0]
[1754006525140,10.39735694,3697.6,3697.5,1.0]
[1754006525371,7.6929,3697.6,3697.5,1.0]
[1754006525842,10.39735694,3697.6,3697.5,1.0]
[1754006526374,4.221,3698.1,3697.5,1.0]
[1754006526520,3.0,3698.0,3697.5,1.0]
[1754006526933,3.4719,3698.0,3697.5,1.0]
[1754006527329,3.0,3698.0,3697.6,0.4845]
[1754006527535,0.29848613,3698.3,3697.5,1.0]
[1754006527859,3.0,3698.1,3697.5,1.0]
[1754006528035,0.4719,3698.4,3697.5,1.0]
[1754006528361,4.46827392,3698.3,3697.6,0.4845]
[1754006528528,0.49467288,3698.2,3697.5,1.0]
[1754006528729,3.0,3698.0,3697.5,1.0]
[1754006528926,0.9556,3697.9,3697.5,1.0]
[1754006529155,1.08806386,3697.9,3697.5,1.0]
[1754006529359,3.0,3698.0,3697.6,0.4845]
[1754006529555,0.24750981,3697.9,3697.5,1.0]
[1754006530297,0.24750981,3697.9,3697.6,0.4845]
[1754006530598,0.24750981,3697.8,3697.6,0.4845]
[1754006530777,0.24750981,3697.7,3697.6,0.63295]
[1754006531107,0.1352,3698.4,3697.8,0.1352]
[1754006531262,3.0,3698.1,3697.5,1.0]
[1754006531464,0.1352,3697.7,3697.5,1.0]
[1754006531796,0.24762379,3697.6,3697.5,1.0]
[1754006532199,0.1352,3697.7,3697.5,1.0]
[1754006532499,0.24762379,3697.6,3697.5,1.0]
[1754006532697,0.24762379,3697.6,3697.5,1.4845]
[1754006533058,0.24762379,3697.9,3697.5,2.07247]
[1754006533298,0.24762379,3697.8,3697.6,0.4845]
[1754006533494,0.24762379,3697.7,3697.6,0.4845]
[1754006533697,0.1352,3698.2,3697.6,0.4845]
[1754006533898,0.24790534,3698.1,3697.6,0.6197]
[1754006534063,0.24790534,3698.0,3697.7,0.222817]
[1754006534258,0.1352,3698.2,3697.8,0.4845]
[1754006534502,0.24797482,3698.7,3697.9,0.4845]
[1754006534701,0.24814105,3698.6,3698.2,0.55]
[1754006535002,0.24814105,3698.5,3698.3,0.505]
[1754006535302,0.6071,3699.3,3698.5,0.1352]
[1754006535461,1.48608646,3699.2,3698.5,0.1352]
[1754006535660,1.48608646,3699.2,3698.0,4.26]
[1754006535661,0.1352,3698.8,3698.3,0.1352]
[1754006535855,0.24834769,3698.7,3698.3,0.1352]
[1754006536094,0.24834769,3698.6,3698.3,0.1352]
[1754006536402,0.1352,3698.8,3698.3,0.1352]
[1754006536403,0.24834769,3698.5,3698.3,0.6197]
[1754006536567,0.24834769,3698.4,3698.3,0.1352]
[1754006537811,0.24834769,3698.4,3698.0,4.22]
[1754006537960,0.4292,3699.2,3698.3,0.5158]
[1754006538161,0.49727664,3699.1,3698.3,0.651]
[1754006538388,0.49727664,3699.0,3698.6,0.1352]
[1754006538670,0.49727664,3698.9,3698.6,0.1352]
[1754006539005,0.49727664,3698.8,3698.7,0.5158]
[1754006539166,0.49727664,3698.8,3698.7,4.7758]
[1754006539369,0.49727664,3698.8,3698.7,5.2669]
[1754006540059,0.49727664,3698.8,3698.7,4.7511]
[1754006540389,0.49727664,3698.8,3698.7,4.26]
[1754006540580,0.24863832,3698.8,3698.7,4.26]
[1754006540774,1.18513832,3698.8,3698.7,4.26]
[1754006540979,0.67783832,3698.8,3698.7,4.26]
[1754006541175,0.24863832,3698.8,3698.7,4.26]
[1754006542105,1.18513832,3698.8,3698.7,4.26]
[1754006543580,1.18512926,3698.8,3698.7,4.26]
[1754006543765,0.67782926,3698.8,3698.5,4.22]
[1754006543966,0.38382926,3698.7,3698.5,4.22]
[1754006544200,0.1352,3698.7,3698.5,4.22]
[1754006544495,0.1352,3698.7,3698.2,4.26]
[1754006544678,0.1352,3698.7,3698.6,4.22]
[1754006544876,0.1352,3698.7,3698.2,4.26]
[1754006545082,0.5644,3698.7,3698.3,4.22]
[1754006545303,0.5644,3698.7,3698.2,4.26]
[1754006545304,0.9365,3698.6,3698.2,4.26]
[1754006545509,0.1352,3698.4,3698.3,4.22]
[1754006545884,0.5644,3698.4,3698.3,4.22]
[1754006546195,1.0717,3698.4,3698.2,8.48]
[1754006546394,0.1352,3698.4,3698.2,8.48]
[1754006546779,0.1352,3698.7,3698.2,8.48]
[1754006546980,0.9365,3699.2,3698.3,0.5158]
[1754006547184,0.38374041,3699.1,3698.5,0.1352]
[1754006547496,0.1352,3699.3,3698.7,0.1352]
[1754006547699,0.2484792,3699.2,3698.8,4.22]
[1754006548008,0.2484792,3699.2,3698.9,0.5158]
[1754006548587,0.2484792,3699.2,3698.8,4.22]
[1754006548784,0.4292,3699.1,3698.9,4.219]
[1754006548984,0.4292,3699.1,3698.1,4.26]
[1754006548985,1.1849792,3699.0,3698.1,4.26]
[1754006549191,0.1352,3698.8,3698.5,4.219]
[1754006549516,0.4292,3698.7,3698.5,4.219]
[1754006550682,0.1352,3698.8,3698.5,4.219]
[1754006550921,0.1352,3698.9,3698.5,4.219]
[1754006552541,0.9365,3698.8,3698.5,4.219]
[1754006552750,0.1352,3698.7,3698.5,4.219]
[1754006552910,0.5644,3698.7,3698.5,4.219]
[1754006553311,0.9365,3698.6,3697.7,4.26]
[1754006553515,0.1352,3698.1,3697.8,4.219]
[1754006553810,0.1352,3698.2,3697.9,4.219]
[1754006554244,0.4292,3698.7,3698.0,0.5158]
[1754006554547,0.1352,3698.4,3698.0,0.5158]
[1754006555456,0.4292,3698.7,3698.1,4.7348]
[1754006555648,0.1352,3698.6,3698.2,4.219]
[1754006556354,0.9365,3699.3,3698.3,0.5158]
[1754006556521,0.1352,3699.1,3698.5,0.1352]
[1754006556849,0.1352,3699.1,3698.6,4.26]
[1754006557056,0.97029291,3699.0,3698.6,4.26]
[1754006557235,0.1352,3698.8,3698.7,4.219]
[1754006557613,1.0717,3698.8,3698.7,4.219]
[1754006557854,1.0717,3698.8,3698.6,4.26]
[1754006558022,0.51271371,3698.8,3698.7,4.219]
[1754006558222,0.1352,3698.8,3698.6,4.26]
[1754006558541,5.70365263,3698.7,3698.6,4.26]
[1754006558729,6.64015263,3698.7,3698.6,4.26]
[1754006559698,3.9365,3698.7,3698.6,4.26]
[1754006559982,6.64015263,3698.7,3698.6,4.26]
[1754006560155,7.31768789,3698.7,3698.6,4.26]
[1754006560350,4.61403526,3698.7,3698.6,4.26]
[1754006560877,7.56661311,3698.7,3698.6,4.26]
[1754006561086,37.56661311,3698.7,3698.6,4.26]
[1754006561579,3.0,3698.6,3698.2,4.219]
[1754006561773,0.1352,3698.3,3698.2,4.219]
[1754006561978,0.1352,3698.3,3698.2,4.6409]
[1754006562180,0.1352,3698.7,3698.2,5.1567]
[1754006562484,0.1352,3698.7,3698.2,4.219]
[1754006562779,0.2490575,3699.6,3698.7,0.55]
[1754006563020,0.49811841,3699.5,3698.9,0.55]
[1754006563145,0.02,3700.9,3699.8,0.6852]
[1754006563343,0.02,3700.9,3699.8,5.13382651]
[1754006563344,0.26907416,3699.9,3699.8,5.13382651]
[1754006563544,0.02,3699.9,3699.8,8.50817531]
[1754006563980,0.02,3699.9,3699.8,5.80532651]
[1754006564181,0.02,3699.9,3699.8,1.53982651]
[1754006564585,0.02,3699.9,3699.8,0.1352]
[1754006564906,0.02,3699.9,3699.6,0.1352]
[1754006564907,3.9565,3699.9,3699.6,0.1352]
[1754006565195,0.02,3699.9,3699.7,0.651]
[1754006565498,0.02,3699.9,3699.8,0.5158]
[1754006565659,0.02,3699.9,3699.7,0.1352]
[1754006566179,0.02,3699.9,3699.8,0.5158]
[1754006566487,0.02,3699.9,3699.7,0.1352]
[1754006567164,0.02,3699.9,3699.7,0.98842]
[1754006567350,0.02,3699.9,3699.8,1.0395]
[1754006567746,0.02,3699.9,3699.8,5.2995]
[1754006568165,0.02,3699.9,3699.8,4.26]
[1754006569753,1.0084,3699.9,3699.8,8.522]
[1754006570059,3.59428366,3699.9,3699.8,4.262]
[1754006570488,2.60588366,3699.9,3699.8,4.262]
[1754006570718,0.02,3699.9,3699.8,4.7515]
[1754006572421,0.02,3699.9,3699.8,4.271]
[1754006572723,0.02,3699.9,3699.8,4.7605]
[1754006573023,0.02,3699.9,3699.8,5.23655]
[1754006573379,0.02,3699.9,3699.8,5.78655]
[1754006573724,0.02,3699.9,3699.8,5.80705]
[1754006574016,891.53145045,3700.0,3699.9,10.51277575]
[1754006574223,889.18684907,3700.0,3699.9,11.02277575]
[1754006575110,887.75737455,3700.0,3699.9,11.02277575]
[1754006575704,887.75737455,3700.0,3699.9,18.17277575]
[1754006576582,887.75737455,3700.0,3699.9,22.44777575]
[1754006577099,887.75737455,3700.0,3699.9,22.58297575]
[1754006577810,887.75737455,3700.0,3699.9,22.56247575]
[1754006578320,879.1143051,3700.0,3699.9,15.29777575]
[1754006578837,859.88857924,3700.0,3699.9,15.29777575]
[1754006579488,827.26648201,3700.0,3699.9,22.44777575]
[1754006579795,785.75216471,3700.0,3699.9,22.44777575]
[1754006580187,783.16087179,3700.0,3699.9,14.41]
[1754006580392,783.16087179,3700.0,3699.9,4.26]
[1754006580723,783.16087179,3700.0,3699.9,8.538]
[1754006580888,783.16087179,3700.0,3699.9,9.088]
[1754006581340,783.16087179,3700.0,3699.9,8.538]
[1754006581691,783.16087179,3700.0,3698.8,0.20250787]
[1754006581692,784.14927179,3700.0,3698.8,0.20250787]
[1754006581891,784.14927179,3700.0,3698.1,0.02]
[1754006581892,0.9884,3699.9,3698.6,2.70371958]
[1754006582216,0.4617,3699.8,3698.8,2.7035181]
[1754006582414,0.4617,3699.8,3698.8,3.19307048]
[1754006582612,0.4617,3699.8,3699.1,3.0]
[1754006582813,0.4617,3699.8,3699.2,4.285]
[1754006583017,0.4617,3699.8,3699.1,3.0]
[1754006583227,0.4617,3699.8,3699.4,0.55]
[1754006583424,783.16087179,3700.0,3699.4,0.55]
[1754006583714,784.14927179,3700.0,3699.4,0.55]
[1754006585532,784.14927179,3700.0,3699.6,2.70299372]
[1754006585533,783.16087179,3700.0,3699.6,2.70299372]
[1754006585734,783.16087179,3700.0,3699.8,0.55]
[1754006586501,0.4617,3699.9,3698.9,2.70344558]
[1754006586806,0.9884,3699.9,3699.2,0.55]
[1754006587006,0.9884,3699.9,3699.4,0.55]
[1754006587337,0.9884,3699.8,3699.5,4.26]
[1754006587501,783.16087179,3700.0,3699.6,4.279]